fUST/lending_fUST_20241201
["ID","MTS","AMOUNT","RATE_DAILY","PERIOD"]
[343892659,1733004653660,-500.0,0.00026301,3]
[343892660,1733004653669,-674.25,0.00026301,3]
[343892661,1733004653678,-447.19881323,0.00026301,3]
[343892662,1733004653688,-500.0,0.00026301,3]
[343892663,1733004653697,-500.0,0.00026301,3]
[343892664,1733004653707,-1701.82,0.00026301,3]
[343892665,1733004653718,-658.33,0.00026301,3]
[343892666,1733004653727,-756.89,0.00026301,3]
[343892667,1733004653737,-500.0,0.00026301,3]
[343892668,1733004653746,-1240.85,0.00026301,3]
[343892669,1733004653756,-2080.07,0.00026301,3]
[343892670,1733004653766,-526.62,0.00026301,3]
[343892671,1733004653775,-500.0,0.00026301,3]
[343892672,1733004653785,-500.0,0.00026301,3]
[343892673,1733004653794,-753.75,0.00026301,3]
[343892674,1733004653804,-2933.37,0.00026301,3]
[343892675,1733004653813,-6588.74,0.00026301,3]
[343892676,1733004653823,-1396.58,0.00026301,3]
[343892677,1733004653832,-500.0,0.00026301,3]
[343892678,1733004653842,-500.0,0.00026301,3]
[343892679,1733004653852,-500.0,0.00026301,3]
[343892680,1733004653862,-500.0,0.00026301,3]
[343892681,1733004653875,-500.0,0.00026301,3]
[343892682,1733004653897,-524.46,0.00026301,3]
[343892683,1733004653918,-500.0,0.00026301,3]
[343892684,1733004653940,-1724.99,0.00026301,3]
[343892685,1733004653959,-3339.25,0.00026301,3]
[343892686,1733004653978,-402.32297729,0.00026301,3]
[343892687,1733004653996,-500.0,0.00026301,3]
[343892688,1733004654013,-738.57,0.00026301,3]
[343892689,1733004654027,-521.03,0.00026301,3]
[343892690,1733004654046,-811.37,0.00026301,3]
[343892691,1733004654066,-1157.48,0.00026301,3]
[343892692,1733004654082,-1336.56,0.00026301,3]
[343892693,1733004654099,-500.0,0.00026301,3]
[343892694,1733004654129,-1503.46,0.00026301,3]
[343892695,1733004654144,-500.0,0.00026301,3]
[343892696,1733004654160,-656.5952775,0.00026384,2]
[343892697,1733004654173,-218.0,0.0002639,17]
[343892698,1733004654188,-300.0,0.000264,2]
[343892699,1733004654203,-300.0,0.000264,2]
[343892700,1733004654219,-300.0,0.000264,2]
[343892701,1733004654234,-420.0,0.00026469,2]
[343892702,1733004654247,-752.07163472,0.00026522,2]
[343892703,1733004654262,-1500.0,0.00026522,2]
[343892704,1733004654277,-500.0,0.00026522,2]
[343892705,1733004654290,-1502.01339552,0.00026522,2]
[343892706,1733004654305,-1500.0,0.00026522,2]
[343892707,1733004654320,-160.0,0.00026556,3]
[343892708,1733004654334,-500.0,0.00026575,3]
[343892709,1733004654349,-500.0,0.00026575,3]
[343892710,1733004654363,-505.50948391,0.00026575,3]
[343892711,1733004654379,-463.69333758,0.00026575,3]
[343892712,1733004654391,-500.0,0.00026575,3]
[343892713,1733004654402,-500.0,0.00026575,3]
[343892714,1733004654411,-500.0,0.00026575,3]
[343892715,1733004654421,-500.0,0.00026575,3]
[343892716,1733004654431,-526.89,0.00026575,3]
[343892717,1733004654441,-500.0,0.00026575,3]
[343892718,1733004654450,-737.28,0.00026575,3]
[343892719,1733004654462,-508.03,0.00026575,3]
[343892720,1733004654472,-500.0,0.00026575,3]
[343892721,1733004654482,-1026.82,0.00026575,3]
[343892722,1733004654492,-500.0,0.00026575,3]
[343892723,1733004654502,-917.89,0.00026575,3]
[343892724,1733004654512,-500.0,0.00026575,3]
[343892725,1733004654655,-500.0,0.00026575,3]
[343892726,1733004654667,-503.66030787,0.00026575,3]
[343892727,1733004654676,-500.0,0.00026575,3]
[343892728,1733004654686,-946.45,0.00026575,3]
[343892729,1733004654695,-500.0,0.00026575,3]
[343892730,1733004654706,-500.0,0.00026575,3]
[343892731,1733004654715,-817.71,0.00026575,3]
[343892732,1733004654726,-500.0,0.00026575,3]
[343892733,1733004654735,-2297.0,0.00026575,3]
[343892734,1733004654744,-500.0,0.00026575,3]
[343892735,1733004654754,-663.59,0.00026575,3]
[343892736,1733004654763,-1478.9,0.00026575,3]
[343892737,1733004654772,-500.0,0.00026575,3]
[343892738,1733004654781,-974.45,0.00026575,3]
[343892739,1733004654791,-884.23,0.00026575,3]
[343892740,1733004654800,-599.70476981,0.00026575,3]
[343892741,1733004654809,-500.0,0.00026575,3]
[343892742,1733004654818,-500.0,0.00026575,3]
[343892743,1733004654828,-500.0,0.00026575,3]
[343892744,1733004654837,-821.66,0.00026575,3]
[343892745,1733004654846,-656.68,0.00026575,3]
[343892746,1733004654856,-500.0,0.00026575,3]
[343892747,1733004654866,-200.0,0.00026575,3]
[343892748,1733004654875,-500.0,0.00026575,3]
[343892749,1733004654885,-500.0,0.00026575,3]
[343892750,1733004654894,-500.0,0.00026575,3]
[343892751,1733004654906,-500.0,0.00026575,3]
[343892752,1733004654915,-665.13,0.00026575,3]
[343892753,1733004654925,-581.04,0.00026575,3]
[343892754,1733004654934,-500.0,0.00026575,3]
[343892755,1733004654944,-500.0,0.00026575,3]
[343892756,1733004654955,-953.96,0.00026575,3]
[343892757,1733004654964,-1744.41,0.00026575,3]
[343892758,1733004654983,-1703.16,0.00026575,3]
[343892759,1733004654992,-1189.03,0.00026575,3]
[343892760,1733004655002,-500.0,0.00026575,3]
[343892761,1733004655011,-1534.89,0.00026575,3]
[343892762,1733004655021,-500.0,0.00026575,3]
[343892763,1733004655030,-500.0,0.00026575,3]
[343892764,1733004655040,-503.75,0.00026575,3]
[343892765,1733004655050,-500.0,0.00026575,3]
[343892766,1733004655060,-500.0,0.00026575,3]
[343892767,1733004655069,-561.55,0.00026575,3]
[343892768,1733004655079,-500.0,0.00026575,3]
[343892769,1733004655088,-500.0,0.00026575,3]
[343892770,1733004655098,-200.0,0.00026575,3]
[343892771,1733004655107,-724.23,0.00026575,3]
[343892772,1733004655117,-583.15,0.00026575,3]
[343892773,1733004655127,-2481.72,0.00026575,3]
[343892774,1733004655136,-500.0,0.00026575,3]
[343892775,1733004655145,-500.0,0.00026575,3]
[343892776,1733004655155,-3056.09,0.00026575,3]
[343892777,1733004655165,-500.0,0.00026575,3]
[343892778,1733004655174,-868.94,0.00026575,3]
[343892779,1733004655184,-678.01,0.00026575,3]
[343892780,1733004655194,-628.97,0.00026575,3]
[343892781,1733004655203,-1380.11,0.00026575,3]
[343892782,1733004655213,-701.26,0.00026575,3]
[343892783,1733004655226,-500.0,0.00026575,3]
[343892784,1733004655235,-500.0,0.00026575,3]
[343892785,1733004655245,-1174.8,0.00026575,3]
[343892786,1733004655255,-1495.14,0.00026575,3]
[343892787,1733004655264,-429.80853762,0.00026575,3]
[343892788,1733004655274,-500.0,0.00026575,3]
[343892789,1733004655284,-613.1,0.00026575,3]
[343892790,1733004655293,-1701.11,0.00026575,3]
[343892791,1733004655302,-500.0,0.00026575,3]
[343892792,1733004655311,-500.0,0.00026575,3]
[343892793,1733004655320,-500.0,0.00026575,3]
[343892794,1733004655331,-500.0,0.00026575,3]
[343892795,1733004655340,-515.67395303,0.00026575,3]
[343892796,1733004655350,-725.62,0.00026575,3]
[343892797,1733004655359,-2197.46,0.00026575,3]
[343892798,1733004655368,-1063.13,0.00026575,3]
[343892799,1733004655378,-3353.41,0.00026575,3]
[343892800,1733004655387,-500.0,0.00026575,3]
[343892801,1733004655396,-553.99,0.00026575,3]
[343892802,1733004655405,-500.0,0.00026575,3]
[343892803,1733004655415,-592.23,0.00026575,3]
[343892804,1733004655424,-500.0,0.00026575,3]
[343892805,1733004655434,-500.0,0.00026575,3]
[343892806,1733004655443,-631.89,0.00026575,3]
[343892807,1733004655453,-500.0,0.00026575,3]
[343892808,1733004655462,-500.0,0.00026575,3]
[343892809,1733004655473,-500.0,0.00026575,3]
[343892810,1733004655483,-500.0,0.00026575,3]
[343892811,1733004655493,-1101.41,0.00026575,2]
[343892812,1733004655503,-1903.85,0.00026575,3]
[343892813,1733004655512,-500.0,0.00026575,3]
[343892814,1733004655522,-500.0,0.00026575,3]
[343892815,1733004655532,-500.0,0.00026575,3]
[343892816,1733004655542,-500.0,0.00026575,3]
[343892817,1733004655551,-542.38,0.00026575,3]
[343892818,1733004655561,-562.24,0.00026575,3]
[343892819,1733004655570,-500.0,0.00026575,3]
[343892820,1733004655579,-500.0,0.00026575,3]
[343892821,1733004655589,-1954.29,0.00026575,3]
[343892822,1733004655598,-500.0,0.00026575,3]
[343892823,1733004655608,-787.16,0.00026575,3]
[343892824,1733004655617,-502.65,0.00026575,3]
[343892825,1733004655627,-500.0,0.00026575,3]
[343892826,1733004655636,-500.0,0.00026575,3]
[343892827,1733004655645,-500.0,0.00026575,3]
[343892828,1733004655655,-500.0,0.00026575,3]
[343892829,1733004655664,-564.28,0.00026575,3]
[343892830,1733004655673,-2790.51,0.00026575,3]
[343892831,1733004655682,-500.0,0.00026575,3]
[343892832,1733004655691,-659.06,0.00026575,3]
[343892833,1733004655701,-500.0,0.00026575,3]
[343892834,1733004655710,-500.0,0.00026575,3]
[343892835,1733004655719,-2637.41,0.00026575,3]
[343892836,1733004655728,-500.0,0.00026575,3]
[343892837,1733004655738,-674.25,0.00026575,3]
[343892838,1733004655747,-500.0,0.00026575,3]
[343892839,1733004655757,-500.0,0.00026575,3]
[343892840,1733004655766,-1701.82,0.00026575,3]
[343892841,1733004655775,-658.33,0.00026575,3]
[343892842,1733004655784,-756.89,0.00026575,3]
[343892843,1733004655794,-500.0,0.00026575,3]
[343892844,1733004655803,-1240.85,0.00026575,3]
[343892845,1733004655813,-2080.07,0.00026575,3]
[343892846,1733004655822,-526.62,0.00026575,3]
[343892847,1733004655831,-500.0,0.00026575,3]
[343892848,1733004655841,-500.0,0.00026575,3]
[343892849,1733004655850,-753.75,0.00026575,3]
[343892850,1733004655859,-2933.37,0.00026575,3]
[343892851,1733004655868,-6588.74,0.00026575,3]
[343892852,1733004655878,-1396.58,0.00026575,3]
[343892853,1733004655887,-500.0,0.00026575,3]
[343892854,1733004655896,-500.0,0.00026575,3]
[343892855,1733004655907,-500.0,0.00026575,3]
[343892856,1733004655917,-289.77,0.00026575,3]
[343892857,1733004655926,-500.0,0.00026575,3]
[343892858,1733004655936,-524.46,0.00026575,3]
[343892859,1733004655945,-500.0,0.00026575,3]
[343892860,1733004655957,-1724.99,0.00026575,3]
[343892861,1733004655966,-3339.25,0.00026575,3]
[343892862,1733004655977,-500.0,0.00026575,3]
[343892863,1733004655988,-738.57,0.00026575,3]
[343892864,1733004655998,-521.03,0.00026575,3]
[343892865,1733004656007,-811.37,0.00026575,3]
[343892866,1733004656016,-1157.48,0.00026575,3]
[343892867,1733004656026,-1336.56,0.00026575,3]
[343892868,1733004656035,-500.0,0.00026575,3]
[343892869,1733004656045,-1503.46,0.00026575,3]
[343892870,1733004656054,-500.0,0.00026575,3]
[343892871,1733004656063,-2242.726814,0.00026591,2]
[343892872,1733004656072,-250.0,0.00026621,2]
[343892873,1733004656082,-500.0,0.00026651,7]
[343892874,1733004656092,-1090.91822864,0.00026765,2]
[343892875,1733004656101,-500.0,0.00026849,3]
[343892876,1733004656110,-500.0,0.00026849,3]
[343892877,1733004656119,-500.0,0.00026849,3]
[343892878,1733004656129,-500.0,0.00026849,3]
[343892879,1733004656138,-500.0,0.00026849,3]
[343892880,1733004656148,-500.0,0.00026849,3]
[343892881,1733004656157,-500.0,0.00026849,3]
[343892882,1733004656166,-737.28,0.00026849,3]
[343892883,1733004656175,-508.03,0.00026849,3]
[343892884,1733004656185,-500.0,0.00026849,3]
[343892885,1733004656194,-1026.82,0.00026849,3]
[343892886,1733004656203,-500.0,0.00026849,3]
[343892887,1733004656213,-917.89,0.00026849,3]
[343892888,1733004656225,-573.2377363,0.00026849,3]
[343892889,1733004656235,-500.0,0.00026849,3]
[343892890,1733004656244,-500.0,0.00026849,3]
[343892891,1733004656253,-946.45,0.00026849,3]
[343892892,1733004656262,-517.06399622,0.00026849,3]
[343892893,1733004656271,-500.0,0.00026849,3]
[343892894,1733004656280,-817.71,0.00026849,3]
[343892895,1733004656290,-500.0,0.00026849,3]
[343892896,1733004656299,-2297.0,0.00026849,3]
[343892897,1733004656309,-500.0,0.00026849,3]
[343892898,1733004656318,-663.59,0.00026849,3]
[343892899,1733004656327,-500.0,0.00026849,3]
[343892900,1733004656337,-1478.9,0.00026849,3]
[343892901,1733004656347,-974.45,0.00026849,3]
[343892902,1733004656358,-884.23,0.00026849,3]
[343892903,1733004656367,-500.0,0.00026849,3]
[343892904,1733004656377,-500.0,0.00026849,3]
[343892905,1733004656386,-500.0,0.00026849,3]
[343892906,1733004656395,-821.66,0.00026849,3]
[343892907,1733004656405,-656.68,0.00026849,3]
[343892908,1733004656414,-500.0,0.00026849,3]
[343892909,1733004656423,-200.0,0.00026849,3]
[343892910,1733004656432,-500.0,0.00026849,3]
[343892911,1733004656442,-500.0,0.00026849,3]
[343892912,1733004656451,-500.0,0.00026849,3]
[343892913,1733004656460,-319.99831363,0.00026849,3]
[343892914,1733004656471,-665.13,0.00026849,3]
[343892915,1733004656484,-581.04,0.00026849,3]
[343892916,1733004656493,-500.0,0.00026849,3]
[343892917,1733004656502,-500.0,0.00026849,3]
[343892918,1733004656511,-953.96,0.00026849,3]
[343892919,1733004656520,-1744.41,0.00026849,3]
[343892920,1733004656530,-1703.16,0.00026849,3]
[343892921,1733004656539,-1189.03,0.00026849,3]
[343892922,1733004656549,-500.0,0.00026849,3]
[343892923,1733004656559,-1534.89,0.00026849,3]
[343892924,1733004656568,-500.0,0.00026849,3]
[343892925,1733004656577,-500.0,0.00026849,3]
[343892926,1733004656587,-503.75,0.00026849,3]
[343892927,1733004656596,-500.0,0.00026849,3]
[343892928,1733004656605,-500.0,0.00026849,3]
[343892929,1733004656615,-561.55,0.00026849,3]
[343892930,1733004656625,-500.0,0.00026849,3]
[343892931,1733004656634,-500.0,0.00026849,3]
[343892932,1733004656643,-200.0,0.00026849,3]
[343892933,1733004656652,-724.23,0.00026849,3]
[343892934,1733004656662,-583.15,0.00026849,3]
[343892935,1733004656671,-2481.72,0.00026849,3]
[343892936,1733004656680,-500.0,0.00026849,3]
[343892937,1733004656690,-500.0,0.00026849,3]
[343892938,1733004656764,-3056.09,0.00026849,3]
[343892939,1733004656787,-500.0,0.00026849,3]
[343892940,1733004656796,-868.94,0.00026849,3]
[343892941,1733004656805,-678.01,0.00026849,3]
[343892942,1733004656815,-1380.11,0.00026849,3]
[343892943,1733004656824,-628.97,0.00026849,3]
[343892944,1733004656833,-701.26,0.00026849,3]
[343892945,1733004656842,-500.0,0.00026849,3]
[343892946,1733004656852,-500.0,0.00026849,3]
[343892947,1733004656862,-1174.8,0.00026849,3]
[343892948,1733004656872,-1495.14,0.00026849,3]
[343892949,1733004656882,-500.0,0.00026849,3]
[343892950,1733004656891,-1701.11,0.00026849,3]
[343892951,1733004656901,-500.0,0.00026849,3]
[343892952,1733004656913,-500.0,0.00026849,3]
[343892953,1733004656922,-500.0,0.00026849,3]
[343892954,1733004656932,-500.0,0.00026849,3]
[343892955,1733004656941,-725.62,0.00026849,3]
[343892956,1733004656950,-2197.46,0.00026849,3]
[343892957,1733004656960,-1063.13,0.00026849,3]
[343892958,1733004656970,-3353.41,0.00026849,3]
[343892959,1733004656979,-500.0,0.00026849,3]
[343892960,1733004656989,-553.99,0.00026849,3]
[343892961,1733004656999,-500.0,0.00026849,3]
[343892962,1733004657008,-592.23,0.00026849,3]
[343892963,1733004657018,-500.0,0.00026849,3]
[343892964,1733004657027,-500.0,0.00026849,3]
[343892965,1733004657037,-631.89,0.00026849,3]
[343892966,1733004657046,-246.82,0.00026849,3]
[343892967,1733004657055,-500.0,0.00026849,3]
[343892968,1733004657065,-500.0,0.00026849,3]
[343892969,1733004657075,-500.0,0.00026849,3]
[343892970,1733004657085,-1101.41,0.00026849,2]
[343892971,1733004657094,-1903.85,0.00026849,3]
[343892972,1733004657103,-500.0,0.00026849,3]
[343892973,1733004657113,-500.0,0.00026849,3]
[343892974,1733004657123,-500.0,0.00026849,3]
[343892975,1733004657133,-500.0,0.00026849,3]
[343892976,1733004657142,-542.38,0.00026849,3]
[343892977,1733004657151,-562.24,0.00026849,3]
[343892978,1733004657161,-500.0,0.00026849,3]
[343892979,1733004657170,-500.0,0.00026849,3]
[343892980,1733004657180,-1954.29,0.00026849,3]
[343892981,1733004657189,-500.0,0.00026849,3]
[343892982,1733004657199,-787.16,0.00026849,3]
[343892983,1733004657209,-502.65,0.00026849,3]
[343892984,1733004657220,-500.0,0.00026849,3]
[343892985,1733004657230,-500.0,0.00026849,3]
[343892986,1733004657239,-552.4,0.00026849,3]
[343892987,1733004657248,-500.0,0.00026849,3]
[343892988,1733004657258,-2790.51,0.00026849,3]
[343892989,1733004657267,-500.0,0.00026849,3]
[343892990,1733004657276,-659.06,0.00026849,3]
[343892991,1733004657286,-297.38475603,0.00026849,3]
[343892992,1733004657295,-500.0,0.00026849,3]
[343892993,1733004657304,-2637.41,0.00026849,3]
[343892994,1733004657316,-517.07872995,0.00026849,3]
[343892995,1733004657325,-674.25,0.00026849,3]
[343892996,1733004657334,-500.0,0.00026849,3]
[343892997,1733004657344,-500.0,0.00026849,3]
[343892998,1733004657353,-1701.82,0.00026849,3]
[343892999,1733004657362,-658.33,0.00026849,3]
[343893000,1733004657371,-756.89,0.00026849,3]
[343893001,1733004657381,-500.0,0.00026849,3]
[343893002,1733004657391,-1240.85,0.00026849,3]
[343893003,1733004657401,-526.62,0.00026849,3]
[343893004,1733004657411,-2080.07,0.00026849,3]
[343893005,1733004657420,-500.0,0.00026849,3]
[343893006,1733004657429,-753.75,0.00026849,3]
[343893007,1733004657439,-2933.37,0.00026849,3]
[343893008,1733004657448,-6588.74,0.00026849,3]
[343893009,1733004657458,-1396.58,0.00026849,3]
[343893010,1733004657467,-500.0,0.00026849,3]
[343893011,1733004657478,-500.0,0.00026849,3]
[343893012,1733004657487,-500.0,0.00026849,3]
[343893013,1733004657497,-500.0,0.00026849,3]
[343893014,1733004657506,-524.46,0.00026849,3]
[343893015,1733004657516,-500.0,0.00026849,3]
[343893016,1733004657525,-1724.99,0.00026849,3]
[343893017,1733004657535,-3339.25,0.00026849,3]
[343893018,1733004657544,-500.0,0.00026849,3]
[343893019,1733004657554,-738.57,0.00026849,3]
[343893020,1733004657563,-521.03,0.00026849,3]
[343893021,1733004657572,-811.37,0.00026849,3]
[343893022,1733004657581,-1157.48,0.00026849,3]
[343893023,1733004657592,-1336.56,0.00026849,3]
[343893024,1733004657602,-500.0,0.00026849,3]
[343893025,1733004657612,-1503.46,0.00026849,3]
[343893026,1733004657621,-500.0,0.00026849,3]
[343893027,1733004657632,-420.0,0.0002686,2]
[343893028,1733004657643,-2242.726814,0.00026923,2]
[343893029,1733004657653,-1023.87863686,0.00027,2]
[343893030,1733004657663,-1000.0,0.00027,27]
[343893031,1733004657672,-8993.75186563,0.00027,60]
[343893032,1733004657682,-215.89195,0.00027089,2]
[343893033,1733004657692,-274.610016,0.00027089,2]
[343893034,1733004657701,-244.078471,0.00027089,2]
[343893035,1733004657711,-300.587712,0.000271,13]
[343893036,1733004657721,-754.18631332,0.00027102,2]
[343893037,1733004657731,-500.0,0.00027123,3]
[343893038,1733004657740,-500.0,0.00027123,3]
[343893039,1733004657749,-500.0,0.00027123,3]
[343893040,1733004657759,-500.0,0.00027123,3]
[343893041,1733004657769,-500.0,0.00027123,3]
[343893042,1733004657778,-500.0,0.00027123,3]
[343893043,1733004657787,-500.0,0.00027123,3]
[343893044,1733004657797,-737.28,0.00027123,3]
[343893045,1733004657807,-508.03,0.00027123,3]
[343893046,1733004657816,-533.82372651,0.00027123,3]
[343893047,1733004657825,-1026.82,0.00027123,3]
[343893048,1733004657835,-500.0,0.00027123,3]
[343893049,1733004657845,-917.89,0.00027123,3]
[343893050,1733004657855,-500.0,0.00027123,3]
[343893051,1733004657864,-172.81796505,0.00027123,3]
[343893052,1733004657874,-946.45,0.00027123,3]
[343893053,1733004657884,-500.0,0.00027123,3]
[343893054,1733004657893,-817.71,0.00027123,3]
[343893055,1733004657903,-500.0,0.00027123,3]
[343893056,1733004657915,-2297.0,0.00027123,3]
[343893057,1733004657924,-500.0,0.00027123,3]
[343893058,1733004657933,-663.59,0.00027123,3]
[343893059,1733004657943,-500.0,0.00027123,3]
[343893060,1733004657954,-1478.9,0.00027123,3]
[343893061,1733004657963,-974.45,0.00027123,3]
[343893062,1733004657974,-884.23,0.00027123,3]
[343893063,1733004657984,-197.60593461,0.00027123,3]
[343893064,1733004657994,-500.0,0.00027123,3]
[343893065,1733004658004,-500.0,0.00027123,3]
[343893066,1733004658014,-821.66,0.00027123,3]
[343893067,1733004658023,-656.68,0.00027123,3]
[343893068,1733004658032,-500.0,0.00027123,3]
[343893069,1733004658042,-200.0,0.00027123,3]
[343893070,1733004658051,-500.0,0.00027123,3]
[343893071,1733004658061,-500.0,0.00027123,3]
[343893072,1733004658071,-500.0,0.00027123,3]
[343893073,1733004658080,-665.13,0.00027123,3]
[343893074,1733004658090,-581.04,0.00027123,3]
[343893075,1733004658100,-500.0,0.00027123,3]
[343893076,1733004658109,-500.0,0.00027123,3]
[343893077,1733004658118,-953.96,0.00027123,3]
[343893078,1733004658128,-1744.41,0.00027123,3]
[343893079,1733004658138,-1703.16,0.00027123,3]
[343893080,1733004658148,-1189.03,0.00027123,3]
[343893081,1733004658158,-500.0,0.00027123,3]
[343893082,1733004658168,-1534.89,0.00027123,3]
[343893083,1733004658179,-500.0,0.00027123,3]
[343893084,1733004658190,-500.0,0.00027123,3]
[343893085,1733004658200,-503.75,0.00027123,3]
[343893086,1733004658210,-500.0,0.00027123,3]
[343893087,1733004658223,-500.0,0.00027123,3]
[343893088,1733004658233,-561.55,0.00027123,3]
[343893089,1733004658243,-500.0,0.00027123,3]
[343893090,1733004658253,-500.0,0.00027123,3]
[343893091,1733004658262,-200.0,0.00027123,3]
[343893092,1733004658272,-724.23,0.00027123,3]
[343893093,1733004658281,-583.15,0.00027123,3]
[343893094,1733004658291,-2481.72,0.00027123,3]
[343893095,1733004658301,-500.0,0.00027123,3]
[343893096,1733004658310,-500.0,0.00027123,3]
[343893097,1733004658319,-3056.09,0.00027123,3]
[343893098,1733004658329,-500.0,0.00027123,3]
[343893099,1733004658339,-868.94,0.00027123,3]
[343893100,1733004658348,-678.01,0.00027123,3]
[343893101,1733004658357,-1380.11,0.00027123,3]
[343893102,1733004658367,-628.97,0.00027123,3]
[343893103,1733004658376,-701.26,0.00027123,3]
[343893104,1733004658386,-500.0,0.00027123,3]
[343893105,1733004658395,-500.0,0.00027123,3]
[343893106,1733004658404,-1174.8,0.00027123,3]
[343893107,1733004658413,-1495.14,0.00027123,3]
[343893108,1733004658423,-1701.11,0.00027123,3]
[343893109,1733004658432,-500.0,0.00027123,3]
[343893110,1733004658442,-500.0,0.00027123,3]
[343893111,1733004658452,-500.0,0.00027123,3]
[343893112,1733004658462,-500.0,0.00027123,3]
[343893113,1733004658476,-725.62,0.00027123,3]
[343893114,1733004658486,-2197.46,0.00027123,3]
[343893115,1733004658495,-1063.13,0.00027123,3]
[343893116,1733004658505,-3353.41,0.00027123,3]
[343893117,1733004658515,-500.0,0.00027123,3]
[343893118,1733004658524,-553.99,0.00027123,3]
[343893119,1733004658533,-500.0,0.00027123,3]
[343893120,1733004658542,-592.23,0.00027123,3]
[343893121,1733004658551,-500.0,0.00027123,3]
[343893122,1733004658560,-500.0,0.00027123,3]
[343893123,1733004658569,-631.89,0.00027123,3]
[343893124,1733004658578,-500.0,0.00027123,3]
[343893125,1733004658588,-500.0,0.00027123,3]
[343893126,1733004658598,-500.0,0.00027123,3]
[343893127,1733004658607,-1101.41,0.00027123,2]
[343893128,1733004658616,-1903.85,0.00027123,3]
[343893129,1733004658625,-500.0,0.00027123,3]
[343893130,1733004658634,-500.0,0.00027123,3]
[343893131,1733004658643,-500.0,0.00027123,3]
[343893132,1733004658652,-500.0,0.00027123,3]
[343893133,1733004658661,-542.38,0.00027123,3]
[343893134,1733004658670,-562.24,0.00027123,3]
[343893135,1733004658679,-500.0,0.00027123,3]
[343893136,1733004658688,-500.0,0.00027123,3]
[343893137,1733004658698,-1954.29,0.00027123,3]
[343893138,1733004658706,-787.16,0.00027123,3]
[343893139,1733004658715,-500.0,0.00027123,3]
[343893140,1733004658727,-502.65,0.00027123,3]
[343893141,1733004658736,-500.0,0.00027123,3]
[343893142,1733004658745,-500.0,0.00027123,3]
[343893143,1733004658828,-500.0,0.00027123,3]
[343893144,1733004658837,-2790.51,0.00027123,3]
[343893145,1733004658846,-500.0,0.00027123,3]
[343893146,1733004658855,-659.06,0.00027123,3]
[343893147,1733004658863,-500.0,0.00027123,3]
[343893148,1733004658873,-2637.41,0.00027123,3]
[343893149,1733004658882,-674.25,0.00027123,3]
[343893150,1733004658890,-500.0,0.00027123,3]
[343893151,1733004658900,-500.0,0.00027123,3]
[343893152,1733004658914,-1701.82,0.00027123,3]
[343893153,1733004658923,-658.33,0.00027123,3]
[343893154,1733004658933,-756.89,0.00027123,3]
[343893155,1733004658942,-500.0,0.00027123,3]
[343893156,1733004658951,-1240.85,0.00027123,3]
[343893157,1733004658960,-526.62,0.00027123,3]
[343893158,1733004658971,-2080.07,0.00027123,3]